bitfinex/quotes_BTCUSD_20240703
["timestamp","ask_amount","ask_price","bid_price","bid_amount"]
[1719984421699,0.00084,61000.0,60998.0,0.59825636]
[1719984421888,0.05488222,60999.0,60998.0,0.84315636]
[1719984422301,0.05488222,60999.0,60998.0,0.88053749]
[1719984423466,0.05588222,60999.0,60998.0,0.88053749]
[1719984424081,0.05688222,60999.0,60998.0,0.88053749]
[1719984424653,0.05688222,60999.0,60998.0,0.84315636]
[1719984425064,0.05096218,60999.0,60998.0,0.84315636]
[1719984426594,0.05096218,60999.0,60998.0,1.13815636]
[1719984426794,0.14416218,60999.0,60998.0,1.13815636]
[1719984427113,0.14416218,60999.0,60998.0,0.51810054]
[1719984427286,0.14416218,60999.0,60998.0,0.81310054]
[1719984427923,0.0952,60999.0,60998.0,0.81310054]
[1719984428202,0.1440806,60999.0,60998.0,0.81310054]
[1719984428757,0.2260486,60999.0,60998.0,0.81310054]
[1719984431286,0.23627544,60999.0,60998.0,0.81310054]
[1719984434564,0.23538651,60999.0,60998.0,0.81310054]
[1719984434988,0.23538664,60999.0,60998.0,0.81310054]
[1719984435223,0.23531221,60999.0,60998.0,0.81310054]
[1719984437651,0.23521932,60999.0,60998.0,0.81310054]
[1719984437854,0.17709357,60999.0,60998.0,0.81310054]
[1719984438061,0.23521932,60999.0,60998.0,0.81310054]
[1719984439621,0.23521932,60999.0,60998.0,0.19806633]
[1719984439833,0.32831098,60999.0,60998.0,0.19806633]
[1719984440034,0.32831098,60999.0,60998.0,0.49306633]
[1719984440821,0.32764117,60999.0,60998.0,0.49306633]
[1719984442460,0.32764117,60999.0,60998.0,0.295]
[1719984442650,0.32764117,60999.0,60998.0,0.49306633]
[1719984443071,0.081976,60993.0,60992.0,0.009207]
[1719984443294,0.081986,60986.0,60984.0,0.295]
[1719984443485,0.081986,60986.0,60985.0,0.20727333]
[1719984443486,0.23297839,60986.0,60985.0,0.20727333]
[1719984443705,0.3257336,60986.0,60985.0,0.20727333]
[1719984443905,0.27816832,60986.0,60985.0,0.20727333]
[1719984444067,0.19324271,60986.0,60985.0,0.20727333]
[1719984444257,0.34970394,60986.0,60985.0,0.20727333]
[1719984444866,0.35470394,60986.0,60985.0,0.20727333]
[1719984445318,0.47180394,60986.0,60985.0,0.009207]
[1719984445703,0.48080394,60986.0,60985.0,0.010207]
[1719984446154,0.48880394,60986.0,60985.0,0.011207]
[1719984447194,0.314286,60986.0,60985.0,0.011207]
[1719984447399,0.53113728,60986.0,60985.0,0.011207]
[1719984447626,0.52213728,60986.0,60985.0,0.20827333]
[1719984447763,0.52176512,60986.0,60985.0,0.010207]
[1719984447963,0.53476512,60986.0,60985.0,0.20927333]
[1719984448615,0.52676512,60986.0,60985.0,0.010207]
[1719984448755,0.52676512,60986.0,60985.0,0.20827333]
[1719984448960,0.53976512,60986.0,60985.0,0.011207]
[1719984449603,0.36756764,60986.0,60985.0,0.011207]
[1719984449786,0.35777912,60986.0,60985.0,0.011207]
[1719984450873,0.35777912,60986.0,60985.0,0.20927333]
[1719984451352,0.24247912,60986.0,60985.0,0.32547333]
[1719984451629,0.33567912,60986.0,60985.0,0.32547333]
[1719984451838,0.43567912,60986.0,60985.0,0.32547333]
[1719984451993,0.34247912,60986.0,60985.0,0.32547333]
[1719984452393,0.43567912,60986.0,60985.0,0.32547333]
[1719984453403,0.2192,60986.0,60985.0,0.32547333]
[1719984453764,0.43727918,60986.0,60985.0,0.32547333]
[1719984454547,0.2192,60986.0,60985.0,0.32547333]
[1719984454750,0.40327424,60986.0,60985.0,0.32547333]
[1719984455081,0.40327424,60986.0,60985.0,0.32447333]
[1719984455082,0.53499493,60986.0,60985.0,0.32447333]
[1719984455264,0.56470126,60986.0,60985.0,0.32447333]
[1719984455414,0.45379493,60986.0,60985.0,0.89123233]
[1719984455620,0.45379493,60986.0,60985.0,1.07360754]
[1719984455843,0.35064,60986.0,60985.0,1.07360754]
[1719984456257,0.33864,60986.0,60985.0,1.07260754]
[1719984456465,0.32564,60986.0,60985.0,1.07160754]
[1719984456850,0.32462581,60986.0,60985.0,1.07160754]
[1719984457620,0.33762581,60986.0,60985.0,1.07260754]
[1719984457958,0.34862581,60986.0,60985.0,1.07360754]
[1719984458484,0.34862581,60986.0,60985.0,0.87554121]
[1719984458680,0.34862581,60986.0,60985.0,1.07360754]
[1719984459887,0.33562581,60986.0,60985.0,1.07260754]
[1719984460101,0.33564043,60986.0,60985.0,1.07260754]
[1719984460485,0.34764043,60986.0,60985.0,1.07360754]
[1719984463221,0.26772069,60986.0,60985.0,1.07360754]
[1719984463419,0.34743597,60986.0,60985.0,1.07360754]
[1719984469597,0.34865217,60986.0,60985.0,1.07360754]
[1719984469854,0.34865217,60986.0,60985.0,0.87554121]
[1719984470068,0.34865217,60986.0,60985.0,1.07360754]
[1719984471085,0.44185217,60986.0,60985.0,1.07360754]
[1719984471845,0.34865217,60986.0,60985.0,1.07360754]
[1719984472834,0.26772069,60986.0,60985.0,1.07360754]
[1719984473034,0.45168001,60986.0,60985.0,1.07360754]
[1719984476107,0.45217001,60986.0,60985.0,1.07360754]
[1719984476277,0.45217,60986.0,60985.0,1.07360754]
[1719984476651,0.45217,60986.0,60985.0,0.87554121]
[1719984476840,0.45217,60986.0,60985.0,1.07360754]
[1719984477851,0.45217,60986.0,60985.0,1.07354194]
[1719984479202,0.26772069,60986.0,60985.0,1.07354194]
[1719984479396,0.45227335,60986.0,60985.0,1.07354194]
[1719984481688,0.26772069,60986.0,60985.0,1.07354194]
[1719984481863,0.45226777,60986.0,60985.0,1.07354194]
[1719984482841,0.54546777,60986.0,60985.0,1.02426673]
[1719984483122,0.54546777,60986.0,60985.0,1.07354194]
[1719984484667,0.45226777,60986.0,60985.0,1.07354194]
[1719984485105,0.39218563,60986.0,60985.0,1.07354194]
[1719984485358,0.45152908,60986.0,60985.0,1.07354194]
[1719984485561,0.45152633,60986.0,60985.0,1.07354194]
[1719984486918,0.54472633,60986.0,60985.0,1.07354194]
[1719984487093,0.54472633,60986.0,60985.0,0.90806673]
[1719984488455,0.54318326,60986.0,60985.0,0.95734194]
[1719984489820,0.54402326,60986.0,60985.0,0.95734194]
[1719984491314,0.36176069,60986.0,60985.0,0.95734194]
[1719984491523,0.54418693,60986.0,60985.0,0.95734194]
[1719984492102,0.45098693,60986.0,60985.0,0.95734194]
[1719984495527,0.43998693,60986.0,60985.0,0.95634194]
[1719984495762,0.44698693,60986.0,60985.0,0.95734194]
[1719984496141,0.43498693,60986.0,60985.0,0.95634194]
[1719984496320,0.44298693,60986.0,60985.0,0.95734194]
[1719984497770,0.41492157,60986.0,60985.0,0.95734194]
[1719984498161,0.26056069,60986.0,60985.0,0.95734194]
[1719984498366,0.41492777,60986.0,60985.0,0.95734194]
[1719984500772,0.26056069,60986.0,60985.0,0.95734194]
[1719984501083,0.41430972,60986.0,60985.0,0.95734194]
[1719984503562,0.41430972,60986.0,60985.0,1.07094194]
[1719984507383,0.4173267,60986.0,60985.0,1.07094194]
[1719984510344,0.3173267,60986.0,60985.0,1.19414194]
[1719984510554,0.16056069,60986.0,60985.0,1.19414194]
[1719984510675,0.22304045,60986.0,60985.0,1.19414194]
[1719984513640,0.17195323,60986.0,60985.0,1.19414194]
[1719984513822,0.2217662,60986.0,60985.0,1.19414194]
[1719984514774,0.11584,60986.0,60985.0,1.19414194]
[1719984514917,0.17710565,60986.0,60985.0,1.19414194]
[1719984515118,0.17710565,60986.0,60985.0,1.35444074]
[1719984516283,0.17710565,60986.0,60985.0,1.30444074]
[1719984516680,0.17010565,60986.0,60985.0,1.30344074]
[1719984516881,0.17110565,60986.0,60985.0,1.30344074]
[1719984517058,0.16203614,60986.0,60985.0,1.30344074]
[1719984517257,0.12006696,60986.0,60985.0,1.30344074]
[1719984517464,0.11206696,60986.0,60985.0,1.30244074]
[1719984517980,0.11306696,60986.0,60985.0,1.30244074]
[1719984518390,0.11306696,60986.0,60985.0,1.38442774]
[1719984520082,0.10284,60986.0,60985.0,1.38442774]
[1719984520282,0.11306671,60986.0,60985.0,1.38442774]
[1719984521702,0.11306671,60986.0,60985.0,1.73537574]
[1719984522443,0.11306671,60986.0,60985.0,2.03537574]
[1719984522444,0.06954954,60986.0,60985.0,2.03537574]
[1719984523368,0.05932283,60986.0,60985.0,2.03537574]
[1719984523628,0.05932283,60986.0,60985.0,1.73537574]
[1719984523629,0.06854863,60986.0,60985.0,1.73537574]
[1719984523761,0.05832283,60986.0,60985.0,1.73537574]
[1719984523959,0.06954866,60986.0,60985.0,1.74237574]
[1719984524190,0.06854866,60986.0,60985.0,1.74237574]
[1719984524387,0.06754866,60986.0,60985.0,1.73537574]
[1719984524590,0.06854866,60986.0,60985.0,1.74237574]
[1719984524787,0.06954866,60986.0,60985.0,1.75537574]
[1719984524992,0.06854866,60986.0,60985.0,1.74837574]
[1719984525564,0.06854866,60986.0,60985.0,1.58440174]
[1719984525778,0.06954866,60986.0,60985.0,1.59740174]
[1719984526834,0.06954871,60986.0,60985.0,1.59740174]
[1719984529514,0.06954871,60986.0,60985.0,1.89740174]
[1719984529715,0.06954871,60986.0,60985.0,2.06137574]
[1719984530063,0.06954867,60986.0,60985.0,2.06137574]
[1719984532975,0.05932283,60986.0,60985.0,2.06137574]
[1719984533095,0.06954862,60986.0,60985.0,2.06137574]
[1719984533291,0.05932283,60986.0,60985.0,2.06137574]
[1719984536765,0.06954845,60986.0,60985.0,2.22534974]
[1719984536949,0.05932283,60986.0,60985.0,2.22534974]
[1719984541662,0.08539334,61004.0,61003.0,0.57417561]
[1719984541862,0.13735249,61004.0,61003.0,0.57417561]
[1719984542422,0.13735249,61004.0,61003.0,0.77224194]
[1719984543000,0.14515915,61004.0,61003.0,0.77224194]
[1719984543382,0.15515915,61004.0,61003.0,0.77324194]
[1719984544503,0.20024034,61004.0,61003.0,0.72396673]
[1719984544661,0.20024034,61004.0,61003.0,0.77324194]
[1719984545070,0.21024034,61004.0,61003.0,0.77424194]
[1719984548472,0.21780905,61004.0,61003.0,0.77424194]
[1719984548647,0.15828119,61004.0,61003.0,0.77424194]
[1719984548784,0.21776998,61004.0,61003.0,0.77424194]
[1719984551235,0.21763491,61004.0,61003.0,0.77424194]
[1719984551442,0.22805705,61004.0,61003.0,0.77424194]
[1719984551662,0.21758317,61004.0,61003.0,0.77424194]
[1719984553419,0.21758317,61004.0,61003.0,0.77516594]
[1719984553826,0.21842317,61004.0,61003.0,0.77516594]
[1719984554406,0.21844866,61004.0,61003.0,0.77516594]
[1719984561322,0.21849506,61004.0,61003.0,0.77516594]
[1719984561678,0.21834471,61004.0,61003.0,0.77516594]
[1719984562106,0.12131318,61004.0,61003.0,0.77516594]
[1719984562504,0.21451318,61004.0,61003.0,0.77516594]
[1719984564498,0.21457847,61004.0,61003.0,0.77516594]
[1719984567770,0.21452592,61004.0,61003.0,0.77516594]
[1719984568051,0.30839739,61004.0,61003.0,0.77516594]
[1719984569253,0.21452592,61004.0,61003.0,0.77516594]
[1719984570145,0.12132592,61004.0,61003.0,1.02306594]
[1719984571993,0.12132592,61004.0,61003.0,1.21336474]
[1719984572333,0.07624473,61004.0,61003.0,1.21336474]
[1719984573070,0.07624473,61004.0,61003.0,1.21236474]
[1719984573322,0.07007626,61004.0,61003.0,1.21236474]
[1719984573549,0.07607626,61004.0,61003.0,1.21336474]
[1719984573740,0.06568805,61004.0,61003.0,1.21336474]
[1719984573980,0.00684,61004.0,61003.0,1.21236474]
[1719984574174,0.03754361,61004.0,61003.0,1.21236474]
[1719984574414,0.03754361,61004.0,61003.0,1.21636474]
[1719984574415,0.00684,61004.0,61003.0,1.21636474]
[1719984574593,0.03754355,61004.0,61003.0,1.21636474]
[1719984574769,0.03154355,61004.0,61003.0,1.21536474]
[1719984575082,0.00084,61004.0,61003.0,1.21536474]
[1719984575287,0.00084,61004.0,61003.0,1.21936474]
[1719984578584,0.03158688,61004.0,61003.0,1.21936474]
[1719984578757,0.00084,61004.0,61003.0,1.21936474]
[1719984578992,0.03158691,61004.0,61003.0,1.21936474]
[1719984579720,0.03158691,61004.0,61003.0,1.18936474]
[1719984580318,0.00084,61004.0,61003.0,1.18936474]
[1719984580654,0.02316104,61004.0,61003.0,1.18936474]
[1719984581212,0.02316104,61004.0,61003.0,1.21936474]
[1719984581413,0.02316104,61004.0,61003.0,1.18936474]
[1719984581762,0.02316104,61004.0,61003.0,1.21936474]
[1719984583778,0.01610045,61004.0,61003.0,1.21936474]
[1719984587453,0.01447285,61004.0,61003.0,1.21936474]
[1719984588332,0.01447285,61004.0,61003.0,1.18936474]
[1719984588568,0.01447285,61004.0,61003.0,1.21936474]
[1719984590393,0.01447284,61004.0,61003.0,1.21936474]
[1719984593552,0.01447286,61004.0,61003.0,1.18936474]
[1719984594230,0.01447286,61004.0,61003.0,1.21936474]
[1719984594436,0.01447286,61004.0,61003.0,1.18936474]
[1719984596831,0.01447318,61004.0,61003.0,1.18936474]
[1719984597226,0.00084,61004.0,61003.0,1.18936474]
[1719984597429,0.01447318,61004.0,61003.0,1.18936474]
[1719984600095,0.01447291,61004.0,61003.0,1.18936474]
[1719984601694,0.01447291,61004.0,61003.0,0.78116594]
[1719984602503,0.01447355,61004.0,61003.0,0.46113173]
[1719984602701,0.01447355,61004.0,61003.0,0.008924]
[1719984602702,0.10767355,61004.0,61003.0,0.008924]
[1719984602904,0.27477066,61004.0,61003.0,0.008924]
[1719984603537,0.27477066,61004.0,61003.0,0.004924]
[1719984603659,0.27477066,61004.0,61000.0,0.2541414]
[1719984603879,0.0932,61001.0,61000.0,0.2541414]
[1719984604086,0.10683355,61001.0,60999.0,0.19806633]
[1719984604443,0.01363355,61000.0,60999.0,0.19806633]
[1719984604997,0.01363355,61000.0,60999.0,0.72296673]
[1719984605210,0.01363355,61000.0,60999.0,0.46882533]
[1719984605614,0.0932,61001.0,60999.0,0.46882533]
[1719984605971,0.02616763,61000.0,60999.0,0.46882533]
[1719984606547,0.02616763,61000.0,60999.0,0.72296673]
[1719984606898,0.02616763,61000.0,60997.0,0.270759]
[1719984607113,0.02616763,60999.0,60998.0,0.5249004]
[1719984607323,0.11936763,60999.0,60998.0,0.5249004]
[1719984607836,0.11936763,60999.0,60998.0,0.2541414]
[1719984608047,0.11936763,60999.0,60998.0,0.5249004]
[1719984608296,0.11936763,60999.0,60997.0,0.46882533]
[1719984608439,0.02616763,60998.0,60997.0,0.19806633]
[1719984608642,0.04550826,60998.0,60997.0,0.002]
[1719984608869,0.04550826,60998.0,60989.0,0.45220773]
[1719984608870,0.11934063,60998.0,60989.0,0.2541414]
[1719984609076,0.0932,60991.0,60989.0,0.5249004]
[1719984609288,0.0932,60991.0,60989.0,0.72296673]
[1719984609289,0.02576471,60990.0,60989.0,0.72296673]
[1719984609494,0.02576471,60990.0,60989.0,0.46882533]
[1719984609663,0.02576471,60990.0,60989.0,0.19806633]
[1719984610847,0.02576471,60990.0,60989.0,0.46882533]
[1719984611056,0.11896471,60990.0,60989.0,0.77224194]
[1719984611472,0.12196471,60990.0,60989.0,0.77224194]
[1719984611794,0.12596471,60990.0,60989.0,0.77224194]
[1719984611992,0.13130084,60990.0,60989.0,0.77224194]
[1719984612188,0.13430084,60990.0,60989.0,0.77224194]
[1719984612388,0.13030084,60990.0,60989.0,0.77224194]
[1719984613347,0.03710084,60990.0,60989.0,0.77224194]
[1719984614099,0.04110084,60990.0,60989.0,0.77224194]
[1719984615139,0.007,60990.0,60989.0,0.77224194]
[1719984615315,0.04127802,60990.0,60989.0,0.77224194]
[1719984617119,0.03727802,60990.0,60989.0,0.77224194]
[1719984617513,0.03627802,60990.0,60989.0,0.77224194]
[1719984617764,0.03427802,60990.0,60989.0,0.77224194]
[1719984618055,0.03627802,60990.0,60989.0,0.77224194]
[1719984618416,0.02821881,60990.0,60989.0,0.77224194]
[1719984618757,0.0932,60991.0,60990.0,0.57417561]
[1719984618984,0.12175805,60991.0,60990.0,0.65433143]
[1719984619189,0.23393386,60991.0,60990.0,0.35091482]
[1719984619590,0.23393386,60991.0,60990.0,0.270759]
[1719984619922,0.12855805,60991.0,60990.0,0.35091482]
[1719984620032,0.22175805,60991.0,60990.0,0.35091482]
[1719984620875,0.22175805,60991.0,60990.0,0.08015582]
[1719984621066,0.22175805,60991.0,60990.0,0.40019003]
[1719984621306,0.22175805,60991.0,60990.0,0.35091482]
[1719984621462,0.1932,60991.0,60990.0,0.35091482]
[1719984621648,0.12922513,60991.0,60990.0,0.35091482]
[1719984622000,0.1982,60991.0,60990.0,0.35091482]
[1719984622145,0.2392229,60991.0,60990.0,0.35091482]
[1719984623007,0.2342229,60991.0,60990.0,0.35091482]
[1719984623393,0.2392229,60991.0,60990.0,0.40019003]
[1719984624571,0.1982,60991.0,60990.0,0.40019003]
[1719984624776,0.18289068,60991.0,60990.0,0.40019003]
[1719984624972,0.28289068,60991.0,60990.0,0.40019003]
[1719984625171,0.28789068,60991.0,60990.0,0.40019003]
[1719984625671,0.27789068,60991.0,60990.0,0.40019003]
[1719984625978,0.28489068,60991.0,60990.0,0.40019003]
[1719984627986,0.28482135,60991.0,60990.0,0.40019003]
[1719984629995,0.06846267,61004.0,60992.0,0.270759]
[1719984630219,0.06846267,61004.0,60999.0,0.08015582]
[1719984630220,0.23974989,61003.0,60999.0,0.08015582]
[1719984630401,0.0932,61000.0,60999.0,0.08015582]
[1719984631359,0.17258501,61000.0,60999.0,0.08015582]
[1719984631957,0.27258501,61000.0,60999.0,0.08015582]
[1719984632388,0.27258501,61000.0,60995.0,0.270759]
[1719984632604,0.17938501,60999.0,60998.0,0.79753143]
[1719984632829,0.05975649,61004.0,61003.0,0.32003421]
[1719984633024,0.13944548,61004.0,61003.0,0.270759]
[1719984633245,0.13944548,61004.0,61002.0,0.270759]
[1719984633246,0.12944548,61004.0,61002.0,0.270759]
[1719984633452,0.0932,61003.0,61002.0,0.270759]
[1719984633903,0.0932,61003.0,61001.0,0.5249004]
[1719984634654,0.07961962,61002.0,61001.0,0.5249004]
[1719984634864,0.1,61002.0,61001.0,0.5249004]
[1719984635146,0.17961779,61002.0,61001.0,0.5249004]
[1719984635495,0.17961779,61002.0,61001.0,0.57417561]
[1719984636382,0.103,61002.0,61001.0,0.57517561]
[1719984636597,0.003,61002.0,61001.0,0.57517561]
[1719984636999,0.008,61002.0,61001.0,0.57617561]
[1719984637383,0.108,61002.0,61001.0,0.5269004]
[1719984638026,0.14057772,61002.0,61001.0,0.5269004]
[1719984638486,0.108,61002.0,61001.0,0.5269004]
[1719984639092,0.108,61002.0,61001.0,0.2561414]
[1719984640322,0.108,61002.0,61001.0,0.002]
[1719984641111,0.22026599,61002.0,61001.0,0.002]
[1719984641918,0.22026599,61002.0,60997.0,0.19806633]
[1719984642157,0.0932,60998.0,60997.0,0.19806633]
[1719984642343,0.12580274,60998.0,60997.0,0.19806633]
[1719984642490,0.30546599,60998.0,60997.0,0.19806633]
[1719984642907,0.1932,60998.0,60997.0,0.19806633]
[1719984643120,0.30229712,60998.0,60997.0,0.19806633]
[1719984643489,0.30229712,60998.0,60997.0,0.19906633]
[1719984643923,0.30229712,60998.0,60996.0,0.19806633]
[1719984644124,0.18118545,60998.0,60997.0,0.19806633]
[1719984644321,0.20517236,60998.0,60997.0,0.19806633]
[1719984644480,0.30517236,60998.0,60997.0,0.19806633]
[1719984646143,0.2012,60998.0,60995.0,0.19806633]
[1719984646293,0.2012,60998.0,60994.0,0.19806633]
[1719984646294,0.0932,60995.0,60994.0,0.19806633]
[1719984646497,0.12384284,60995.0,60994.0,0.19806633]
[1719984646813,0.12384284,60995.0,60993.0,0.19806633]
[1719984647013,0.03064284,60994.0,60993.0,0.19806633]
[1719984648560,0.03064284,60994.0,60993.0,0.51810054]
[1719984648561,0.12384284,60994.0,60993.0,0.51810054]
[1719984648760,0.12384284,60994.0,60993.0,0.46882533]
[1719984648988,0.12384284,60994.0,60993.0,0.51810054]
[1719984649380,0.0932,60994.0,60993.0,0.51810054]
[1719984649588,0.12394623,60994.0,60993.0,0.51810054]
[1719984650001,0.12430587,60994.0,60993.0,0.51810054]
[1719984650932,0.12430587,60994.0,60993.0,0.51910054]
[1719984652483,0.00084,61002.0,60993.0,0.51910054]
[1719984652683,0.1094864,61001.0,60997.0,0.19806633]
[1719984652905,0.0932,60998.0,60995.0,0.270759]
[1719984653070,0.1,61000.0,60997.0,0.19806633]
[1719984653271,0.0932,60998.0,60997.0,0.19806633]
[1719984653546,0.22431997,60998.0,60997.0,0.19806633]
[1719984654510,0.22431997,60998.0,60997.0,0.19906633]
[1719984654709,0.22931997,60998.0,60997.0,0.20006633]
[1719984654888,0.22931997,60998.0,60997.0,0.19906633]
[1719984655296,0.23631997,60998.0,60997.0,0.20006633]
[1719984655728,0.2052,60998.0,60997.0,0.20006633]
[1719984655901,0.23656445,60998.0,60997.0,0.20006633]
[1719984656504,0.23656445,60998.0,60997.0,0.44176633]
[1719984658056,0.23656445,60998.0,60997.0,0.76180054]
[1719984659059,0.23650975,60998.0,60997.0,0.76180054]
[1719984659260,0.23650975,60998.0,60997.0,0.56373421]
[1719984659465,0.23650975,60998.0,60997.0,0.76180054]
[1719984660927,0.14330975,60998.0,60997.0,1.01594194]
[1719984661138,0.13650975,60998.0,60997.0,1.01594194]
[1719984661292,0.23650975,60998.0,60997.0,1.01594194]
[1719984661691,0.23642574,60998.0,60997.0,1.01594194]
[1719984662105,0.23613143,60998.0,60997.0,1.01594194]
[1719984662324,0.2052,60998.0,60997.0,1.01594194]
[1719984662525,0.23613461,60998.0,60997.0,0.81787561]
[1719984662734,0.23613461,60998.0,60997.0,1.01594194]
[1719984664077,0.23613461,60998.0,60997.0,0.20006633]
[1719984664078,0.31441618,60998.0,60997.0,0.20006633]
[1719984664641,0.28323306,60998.0,60997.0,0.20006633]
[1719984664869,0.31397178,60998.0,60997.0,0.20006633]
[1719984666724,0.31397178,60998.0,60997.0,0.28022215]
[1719984667876,0.2052,60998.0,60997.0,0.28022215]
[1719984668053,0.3141094,60998.0,60997.0,0.28022215]
[1719984668689,0.2209094,60998.0,60997.0,0.28022215]
[1719984669029,0.3141094,60998.0,60997.0,0.84375636]
[1719984669184,0.2209094,60998.0,60997.0,1.09789776]
[1719984669535,0.3141094,60998.0,60997.0,1.09789776]
[1719984670979,0.2052,60998.0,60997.0,1.09789776]
[1719984671157,0.30331314,60998.0,60997.0,1.09789776]
[1719984671361,0.29631314,60998.0,60997.0,1.09689776]
[1719984671992,0.29931314,60998.0,60997.0,1.09689776]
[1719984672186,0.29431314,60998.0,60997.0,1.09589776]
[1719984672446,0.29419122,60998.0,60997.0,1.09589776]
[1719984672642,0.29419122,60998.0,60997.0,1.09689776]
[1719984674262,0.29119122,60998.0,60997.0,1.09689776]
[1719984674421,0.1932,60998.0,60997.0,1.09689776]
[1719984674644,0.19143736,60998.0,60997.0,1.09689776]
[1719984674856,0.29143736,60998.0,60997.0,1.09689776]
[1719984675059,0.29143715,60998.0,60997.0,0.69670773]
[1719984675614,0.29143715,60998.0,60997.0,0.96746673]
[1719984676086,0.29143715,60998.0,60997.0,0.69570773]
[1719984676327,0.29243715,60998.0,60997.0,0.44156633]
[1719984676531,0.29243715,60998.0,60997.0,0.2435]
[1719984676681,0.29243715,60998.0,60997.0,0.69570773]
[1719984676997,0.29243715,60998.0,60997.0,0.44156633]
[1719984676998,0.29343715,60998.0,60997.0,0.44156633]
[1719984677138,0.29243715,60998.0,60997.0,0.69570773]
[1719984677338,0.29143715,60998.0,60997.0,0.69570773]
[1719984677552,0.29086245,60998.0,60997.0,0.69570773]
[1719984678012,0.29186093,60998.0,60997.0,0.69570773]
[1719984678553,0.29186093,60998.0,60997.0,0.19806633]
[1719984679171,0.29186093,60998.0,60997.0,0.27822215]
[1719984680709,0.1952,60998.0,60997.0,0.27822215]
[1719984680926,0.19185583,60998.0,60997.0,0.27822215]
[1719984681118,0.29185583,60998.0,60997.0,0.27822215]
[1719984681277,0.19865583,60998.0,60997.0,0.54898115]
[1719984681468,0.29185583,60998.0,60997.0,0.27822215]
[1719984681697,0.29185583,60998.0,60997.0,0.59825636]
[1719984681917,0.19865583,60998.0,60997.0,0.59825636]
[1719984682078,0.19185583,60998.0,60997.0,0.59825636]
[1719984682282,0.29185583,60998.0,60997.0,0.59825636]
[1719984682869,0.29185583,60998.0,60997.0,0.19806633]
[1719984684154,0.29004052,60998.0,60997.0,0.19806633]
[1719984684291,0.29004052,60998.0,60997.0,0.27822215]
[1719984684914,0.29004052,60998.0,60997.0,0.27914615]
[1719984685726,0.29004052,60998.0,60997.0,0.54990515]
[1719984686136,0.19684052,60998.0,60997.0,0.54990515]
[1719984686348,0.19004052,60998.0,60997.0,0.68940515]
[1719984686551,0.29004052,60998.0,60997.0,0.68940515]
[1719984687184,0.102,60998.0,60997.0,1.09732176]
[1719984687392,0.29098958,60998.0,60997.0,1.09732176]
[1719984689513,0.29098958,60998.0,60997.0,1.04804655]
[1719984690400,0.31709099,60998.0,60997.0,1.04804655]
[1719984690609,0.34081043,60998.0,60997.0,1.04804655]
[1719984691547,0.34081043,60998.0,60997.0,0.84998022]
[1719984691768,0.34081043,60998.0,60997.0,1.04804655]
[1719984693641,0.2452,60998.0,60997.0,1.04804655]
[1719984693951,0.34077566,60998.0,60997.0,1.04804655]
[1719984695187,0.11690122,60998.0,60997.0,1.04804655]
[1719984696223,0.11690122,60998.0,60997.0,0.77728755]
[1719984697034,0.115736,60998.0,60997.0,0.77728755]
[1719984698671,0.215736,60998.0,60997.0,0.77728755]
[1719984698899,0.215736,60998.0,60997.0,0.19899033]
[1719984700294,0.21459013,60998.0,60997.0,0.19899033]
[1719984700472,0.21459013,60998.0,60997.0,0.27914615]
[1719984700671,0.1932,60998.0,60997.0,0.27914615]
[1719984700873,0.11459002,60998.0,60997.0,0.27914615]
[1719984701066,0.21459002,60998.0,60997.0,0.27914615]
[1719984701273,0.1932,60998.0,60997.0,0.27914615]
[1719984701476,0.2844082,60998.0,60997.0,0.27914615]
[1719984703471,0.2844082,60998.0,60997.0,0.54990515]
[1719984703610,0.28367365,60998.0,60997.0,0.27914615]
[1719984703818,0.28367365,60998.0,60997.0,0.54990515]
[1719984704014,0.28367365,60998.0,60997.0,0.52184615]
[1719984705597,0.28367365,60998.0,60997.0,0.79260515]
[1719984706738,0.28384156,60998.0,60997.0,0.79260515]
[1719984709626,0.28384156,60998.0,60997.0,0.84188036]
[1719984709862,0.09064156,60998.0,60997.0,1.09602176]
[1719984710212,0.00084,61001.0,60997.0,1.09602176]
[1719984710213,0.00084,61001.0,61000.0,1.02084194]
[1719984710562,0.02179661,61001.0,61000.0,1.05084194]
[1719984711164,0.02179661,61001.0,61000.0,1.21114074]
[1719984712460,0.02679661,61001.0,61000.0,1.21114074]
[1719984713110,0.03079661,61001.0,61000.0,1.21114074]
[1719984713436,0.03016912,61001.0,61000.0,1.21114074]
[1719984713772,0.03016902,61001.0,61000.0,1.21114074]
[1719984715538,0.03016902,61001.0,61000.0,1.18114074]
[1719984716346,0.00984,61001.0,61000.0,1.18114074]
[1719984716947,0.03003093,61001.0,61000.0,1.18114074]
[1719984717604,0.02503093,61001.0,61000.0,1.21114074]
[1719984717801,0.02503093,61001.0,61000.0,1.21514074]
[1719984718352,0.02103093,61001.0,61000.0,1.21514074]
[1719984718556,0.02103093,61001.0,61000.0,1.22014074]
[1719984719441,0.00084,61001.0,61000.0,1.22014074]
[1719984719825,0.02110596,61001.0,61000.0,1.22014074]
[1719984722058,0.02110596,61001.0,61000.0,1.02207441]
[1719984722059,0.02105786,61001.0,61000.0,1.02207441]
[1719984722300,0.02105786,61001.0,61000.0,1.22014074]
[1719984722853,0.00084,61001.0,61000.0,1.22014074]
[1719984724449,0.00084,61001.0,61000.0,1.54314074]
[1719984724680,0.00084,61002.0,61001.0,1.18420694]
[1719984724814,0.00084,61002.0,61001.0,2.34538684]
[1719984725205,0.00084,61004.0,61003.0,1.29466233]
[1719984725422,0.00084,61004.0,61003.0,2.32905574]
[1719984725880,0.00084,61004.0,61003.0,2.23585574]
[1719984726079,0.00084,61004.0,61003.0,2.32905574]
[1719984729184,0.00084,61004.0,61003.0,2.34305574]
[1719984729502,0.05,61005.0,61004.0,1.13073133]
[1719984729731,0.05,61005.0,61004.0,1.85438056]
[1719984731482,0.05,61005.0,61004.0,2.01830356]
[1719984731689,0.05,61005.0,61004.0,2.03230356]
[1719984732291,0.05,61005.0,61004.0,2.04630356]
[1719984732499,0.05,61005.0,61004.0,2.03230356]
[1719984732714,0.05,61005.0,61004.0,2.04630356]
[1719984732916,0.05,61005.0,61004.0,2.34630356]
[1719984733287,0.05,61005.0,61004.0,2.33230356]
[1719984734687,0.05,61005.0,61004.0,2.26614774]
[1719984739466,0.47672672,61029.0,61028.0,0.32003421]
[1719984739629,0.58997068,61029.0,61028.0,0.32003421]
[1719984739852,0.11324396,61029.0,61028.0,0.32003421]
[1719984740982,0.11524396,61029.0,61028.0,0.32003421]
[1719984741542,0.26044562,61029.0,61028.0,0.57417561]
[1719984742340,0.25844562,61029.0,61028.0,0.57417561]
[1719984743015,0.25844562,61029.0,61028.0,0.5249004]
[1719984743614,0.25844562,61029.0,61028.0,0.57417561]
[1719984744247,0.25844562,61029.0,61028.0,0.5249004]
[1719984744248,0.25841027,61029.0,61028.0,0.5249004]
[1719984744795,0.25841027,61029.0,61028.0,0.57417561]
[1719984745341,0.25841027,61029.0,61028.0,0.5249004]
[1719984746280,0.25841027,61029.0,61028.0,0.57417561]
[1719984746465,0.25841027,61029.0,61028.0,0.2541414]